bitfinex-derivatives/quotes_BTCF0:USTF0_20260214
["timestamp","ask_amount","ask_price","bid_price","bid_amount"]
[1771072635525,0.0146,70142.0,70127.0,0.014267]
[1771072635817,0.014265,70138.0,70129.0,0.014267]
[1771072636022,0.014265,70140.0,70131.0,0.014266]
[1771072636320,0.00011267,70139.0,70132.0,0.014266]
[1771072636516,0.01437767,70139.0,70131.0,0.028866]
[1771072636717,0.01437767,70139.0,70131.0,0.0146]
[1771072637220,0.014265,70138.0,70131.0,0.0146]
[1771072638010,0.000334,70140.0,70138.0,0.014265]
[1771072638217,0.014262,70151.0,70131.0,0.29229004]
[1771072638411,0.1426,70163.0,70140.0,0.26342404]
[1771072638620,0.014262,70152.0,70144.0,0.014264]
[1771072639022,0.014262,70154.0,70146.0,0.014263]
[1771072639218,0.014262,70154.0,70145.0,0.014263]
[1771072639423,0.028861,70156.0,70146.0,0.014263]
[1771072639612,0.028861,70156.0,70146.0,0.028863]
[1771072639816,0.028861,70156.0,70146.0,0.0146]
[1771072640016,0.014262,70151.0,70142.0,0.014264]
[1771072640320,0.1324428,70150.0,70106.0,0.26342404]
[1771072640514,0.1324428,70150.0,70057.0,0.58722469]
[1771072640515,0.014267,70130.0,70107.0,0.02230312]
[1771072640723,0.014268,70121.0,70112.0,0.01427]
[1771072640916,0.014271,70111.0,70107.0,0.0146]
[1771072641117,0.01427,70112.0,70106.0,0.0146]
[1771072641424,0.01427,70115.0,70105.0,0.01464]
[1771072641625,0.01427,70112.0,70105.0,0.01464]
[1771072641821,0.01427,70115.0,70107.0,0.014271]
[1771072642016,0.0038443,70116.0,70107.0,0.014271]
[1771072642217,0.01464,70120.0,70107.0,0.014271]
[1771072642418,0.014268,70123.0,70116.0,0.014269]
[1771072642724,0.014268,70124.0,70110.0,0.014271]
[1771072643021,0.014268,70121.0,70113.0,0.01427]
[1771072643221,0.014268,70122.0,70113.0,0.01427]
[1771072643418,0.014269,70119.0,70110.0,0.02891]
[1771072643623,0.014269,70121.0,70110.0,0.02891]
[1771072643824,0.014269,70121.0,70112.0,0.01427]
[1771072644118,0.014269,70119.0,70110.0,0.028911]
[1771072644325,0.014269,70119.0,70111.0,0.01427]
[1771072644524,0.014269,70120.0,70112.0,0.01422]
[1771072644723,0.014268,70122.0,70112.0,0.01422]
[1771072644922,0.014268,70121.0,70112.0,0.01422]
[1771072645124,0.01464,70120.0,70113.0,0.01427]
[1771072645322,0.01464,70120.0,70114.0,0.01427]
[1771072645625,0.01464,70120.0,70110.0,0.01464]
[1771072645626,0.014269,70119.0,70110.0,0.028911]
[1771072646118,0.014269,70119.0,70108.0,0.014271]
[1771072646320,0.10568541,70133.0,70107.0,0.01464]
[1771072646525,0.25788737,70102.0,70073.0,0.29198004]
[1771072646724,0.25788737,70102.0,70034.0,2.05983921]
[1771072646725,0.01464,70101.0,70089.0,0.014275]
[1771072646916,0.15732,70104.0,70096.0,0.014273]
[1771072647119,0.014273,70101.0,70091.0,0.014274]
[1771072647420,0.01464,70110.0,70097.0,0.014273]
[1771072647617,0.00010405,70109.0,70098.0,0.01464]
[1771072647823,0.00010405,70109.0,70102.0,0.014272]
[1771072648022,0.00010405,70109.0,70103.0,0.014272]
[1771072648223,0.01464,70113.0,70105.0,0.014272]
[1771072648421,0.01464,70113.0,70103.0,0.014272]
[1771072648619,0.27215437,70128.0,70104.0,0.01464]
[1771072648818,0.014269,70119.0,70109.0,0.014271]
[1771072649017,0.27215437,70128.0,70104.0,0.01464]
[1771072649018,0.014267,70129.0,70108.0,0.014271]
[1771072649325,0.15736177,70128.0,70118.0,0.014269]
[1771072649526,4.177e-05,70128.0,70118.0,0.014269]
[1771072649716,0.02894877,70128.0,70116.0,0.01464]
[1771072649915,0.014268,70125.0,70116.0,0.01464]
[1771072650322,0.014267,70126.0,70116.0,0.028909]
[1771072650720,0.014267,70126.0,70117.0,0.014269]
[1771072650921,0.014268,70125.0,70117.0,0.014269]
[1771072651120,0.014267,70127.0,70118.0,0.014269]
[1771072651322,0.014267,70126.0,70117.0,0.014269]
[1771072651516,0.2537218,70127.0,70091.0,0.25958383]
[1771072651725,0.2679918,70115.0,70095.0,0.014274]
[1771072651922,0.014271,70108.0,70096.0,0.01464]
[1771072652230,0.01468177,70114.0,70068.0,0.014279]
[1771072652231,0.014273,70097.0,70068.0,0.014279]
[1771072652531,0.15740177,70096.0,70088.0,0.014275]
[1771072652822,0.01468,70098.0,70090.0,0.014275]
[1771072653128,0.014272,70104.0,70091.0,0.02231286]
[1771072653129,0.01468,70103.0,70091.0,0.02231286]
[1771072653323,0.014273,70097.0,70092.0,0.02231286]
[1771072653622,0.014273,70101.0,70093.0,0.02231286]
[1771072653931,0.014273,70098.0,70094.0,0.02231286]
[1771072654132,0.014273,70098.0,70095.0,0.02231286]
[1771072654423,0.2537218,70093.0,70062.0,0.02651915]
[1771072654629,0.014275,70090.0,70071.0,0.25958383]
[1771072654825,0.014273,70097.0,70072.0,0.25958383]
[1771072655130,0.1574,70096.0,70078.0,0.014277]
[1771072655328,0.014275,70089.0,70079.0,0.028957]
[1771072655523,0.014276,70084.0,70079.0,0.01468]
[1771072655829,0.014276,70086.0,70079.0,0.01468]
[1771072656218,0.014276,70085.0,70079.0,0.01468]
[1771072656525,0.00011687,70088.0,70079.0,0.01468]
[1771072657027,0.014275,70087.0,70083.0,0.00128757]
[1771072657223,0.014276,70086.0,70079.0,0.01468]
[1771072657429,0.014276,70082.0,70078.0,0.01468]
[1771072657628,0.00011687,70088.0,70069.0,0.25958383]
[1771072657923,0.014277,70081.0,70071.0,0.014279]
[1771072658130,0.014277,70080.0,70070.0,0.1574]
[1771072658327,0.014276,70085.0,70070.0,0.1574]
[1771072658328,0.014276,70082.0,70070.0,0.1574]
[1771072658623,0.014276,70086.0,70072.0,0.014278]
[1771072658830,0.014276,70086.0,70075.0,0.014278]
[1771072659126,0.028955,70087.0,70076.0,0.014278]
[1771072659127,0.028956,70087.0,70076.0,0.014278]
[1771072659326,0.00011687,70088.0,70074.0,0.014278]
[1771072659528,0.01439187,70088.0,70077.0,0.014277]
[1771072659729,0.014276,70086.0,70077.0,0.014277]
[1771072660032,0.01468,70094.0,70078.0,0.41698383]
[1771072660224,0.014275,70087.0,70079.0,0.01468]
[1771072660530,0.028954,70094.0,70079.0,0.028957]
[1771072660827,0.14272,70109.0,70081.0,0.25744878]
[1771072661125,0.01464,70108.0,70086.0,0.014275]
[1771072661325,0.014273,70099.0,70089.0,0.014275]
[1771072661722,0.014272,70102.0,70089.0,0.014275]
[1771072662025,0.014272,70102.0,70087.0,0.15736]
[1771072662026,0.01464,70115.0,70101.0,0.014272]
[1771072662225,0.02891,70114.0,70101.0,0.014272]
[1771072662433,0.01427,70111.0,70102.0,0.014272]
[1771072662632,0.01427,70111.0,70099.0,0.028913]
[1771072662633,0.01427,70113.0,70099.0,0.028913]
[1771072662832,0.014271,70110.0,70099.0,0.028913]
[1771072663029,0.014271,70109.0,70099.0,0.01464]
[1771072663329,0.014273,70100.0,70099.0,0.01464]
[1771072663531,0.14276,70116.0,70087.0,0.014275]
[1771072663532,0.014273,70101.0,70087.0,0.014275]
[1771072663730,0.014273,70100.0,70089.0,0.014275]
[1771072663927,0.014274,70093.0,70087.0,0.01464]
[1771072664133,0.014274,70095.0,70087.0,0.01464]
[1771072664327,0.014274,70092.0,70081.0,0.028917]
[1771072664532,0.014273,70097.0,70083.0,0.014276]
[1771072664729,0.014273,70097.0,70081.0,0.01464]
[1771072664926,0.028913,70098.0,70085.0,0.014276]
[1771072665127,0.01464,70098.0,70086.0,0.014275]
[1771072665327,0.028913,70099.0,70090.0,0.014275]
[1771072665734,0.25861459,70111.0,70090.0,0.25744878]
[1771072665735,0.14276,70111.0,70090.0,0.25744878]
[1771072666031,0.25861459,70124.0,70095.0,0.27172278]
[1771072666232,0.014268,70122.0,70096.0,0.43715896]
[1771072666535,0.014269,70118.0,70109.0,0.00112739]
[1771072666836,0.014269,70119.0,70110.0,0.014271]
[1771072667429,0.014269,70120.0,70114.0,0.00112739]
[1771072667629,0.171668,70121.0,70114.0,0.00112739]
[1771072667932,0.01464,70120.0,70114.0,0.01539739]
[1771072668237,0.014267,70127.0,70114.0,0.00112739]
[1771072668530,0.27288159,70130.0,70110.0,0.028911]
[1771072668721,0.014263,70146.0,70110.0,0.028911]
[1771072668722,0.014267,70127.0,70112.0,0.01427]
[1771072668927,0.01464,70126.0,70121.0,0.014268]
[1771072669227,0.014272,70103.0,70093.0,0.014274]
[1771072669426,0.014272,70103.0,70083.0,0.014276]
[1771072669427,0.014271,70109.0,70092.0,0.014274]
[1771072669629,0.014269,70117.0,70093.0,0.16507009]
[1771072669925,0.01427,70113.0,70103.0,0.014272]
[1771072670126,0.01427,70115.0,70099.0,0.01464]
[1771072670337,0.01427,70113.0,70104.0,0.014272]
[1771072670536,0.01427,70115.0,70106.0,0.014271]
[1771072670739,0.01427,70115.0,70097.0,0.25744878]
[1771072670740,0.014274,70093.0,70078.0,0.014277]
[1771072671029,0.014276,70082.0,70068.0,0.014279]
[1771072671235,0.014278,70076.0,70065.0,0.01428]
[1771072671439,0.014278,70076.0,70066.0,0.01428]
[1771072671636,0.014278,70076.0,70073.0,0.02231704]
[1771072671833,0.014278,70075.0,70066.0,0.01428]
[1771072672438,0.014277,70081.0,70065.0,0.01428]
[1771072672439,0.014278,70076.0,70065.0,0.01428]
[1771072672634,0.014279,70071.0,70064.0,0.01428]
[1771072672835,0.014277,70077.0,70065.0,0.15744]
[1771072673138,0.014279,70072.0,70065.0,0.15744]
[1771072673433,0.014277,70081.0,70065.0,0.15744]
[1771072673739,0.014279,70071.0,70065.0,0.15744]
[1771072674643,0.014279,70068.0,70061.0,0.01428]
[1771072674939,0.01428,70063.0,70057.0,0.014281]
[1771072675134,0.014279,70070.0,70058.0,0.01468]
[1771072675339,0.014278,70072.0,70058.0,0.01468]
[1771072675529,0.014281,70061.0,70058.0,0.01468]
[1771072675735,0.01428,70066.0,70058.0,0.01468]
[1771072675940,0.014279,70070.0,70059.0,0.014281]
[1771072676140,0.01428,70065.0,70058.0,0.01468]
[1771072676543,0.01428,70064.0,70058.0,0.01468]
[1771072676739,0.01428,70063.0,70058.0,0.028961]
[1771072676933,0.014278,70072.0,70059.0,0.01468]
[1771072677136,0.01428,70062.0,70060.0,0.01468]
[1771072677336,0.01428,70062.0,70055.0,0.014282]
[1771072677537,0.01428,70065.0,70052.0,0.14276]
[1771072677731,0.01428,70063.0,70057.0,0.014281]
[1771072678033,0.014281,70059.0,70058.0,0.01468]
[1771072678229,0.25861459,70079.0,70058.0,0.028961]
[1771072678538,0.01428,70065.0,70058.0,0.028961]
[1771072678738,0.014279,70070.0,70064.0,0.01428]
[1771072679035,0.014277,70081.0,70066.0,0.01428]
[1771072679235,0.014278,70074.0,70066.0,0.01428]
[1771072679539,0.15744,70082.0,70065.0,0.02896]
[1771072679540,0.14276,70082.0,70068.0,0.014279]
[1771072679744,0.014277,70079.0,70072.0,0.014278]
[1771072679932,0.014277,70078.0,70073.0,0.01468]
[1771072680134,0.014278,70076.0,70073.0,0.01468]
[1771072680442,0.014277,70077.0,70074.0,0.01468]
[1771072680941,0.014275,70089.0,70080.0,0.014277]
[1771072681242,0.014276,70084.0,70081.0,0.01468]
[1771072681433,0.014276,70082.0,70081.0,0.01468]
[1771072681632,0.014275,70088.0,70081.0,0.01468]
[1771072681841,0.014276,70086.0,70081.0,0.01468]
[1771072682142,0.014276,70085.0,70081.0,0.01468]
[1771072682338,0.014276,70086.0,70081.0,0.15748]
[1771072682538,0.014275,70087.0,70081.0,0.15748]
[1771072682734,0.014276,70086.0,70081.0,0.15748]
[1771072682939,0.014275,70088.0,70081.0,0.15748]
[1771072683138,0.014275,70087.0,70081.0,0.15748]
[1771072683549,0.014273,70101.0,70081.0,0.43462753]
[1771072683736,0.01468,70103.0,70084.0,0.014276]
[1771072683932,0.014273,70101.0,70091.0,0.014274]
[1771072684244,0.014272,70101.0,70092.0,0.01468]
[1771072684431,0.014273,70098.0,70092.0,0.01468]
[1771072684636,0.014273,70097.0,70092.0,0.01468]
[1771072684835,0.001,70100.0,70094.0,0.014274]
[1771072685232,0.014271,70108.0,70097.0,0.014273]
[1771072685433,0.01468,70107.0,70097.0,0.01468]
[1771072685638,0.014271,70106.0,70098.0,0.01468]
[1771072685835,0.014271,70107.0,70098.0,0.01468]
[1771072686041,0.014272,70102.0,70098.0,0.01468]
[1771072686236,0.25461325,70112.0,70098.0,0.01468]
[1771072686237,0.01427,70112.0,70098.0,0.01468]
[1771072686438,0.01468,70115.0,70109.0,0.014271]
[1771072686647,0.01468,70115.0,70107.0,0.014271]
[1771072686848,0.25461325,70130.0,70108.0,0.14276]
[1771072687147,0.01468,70129.0,70116.0,0.014269]
[1771072687339,0.014268,70125.0,70115.0,0.028949]
[1771072687544,0.01468,70125.0,70115.0,0.01468]
[1771072687941,0.25461325,70139.0,70116.0,0.14276]
[1771072688146,0.01468,70138.0,70125.0,0.014267]
[1771072688352,0.01468,70138.0,70126.0,0.01468]
[1771072689145,0.001,70139.0,70129.0,0.014267]
[1771072689347,0.001,70139.0,70128.0,0.01468]
[1771072689853,0.14253478,70160.0,70128.0,0.01468]
[1771072689854,0.25461325,70155.0,70129.0,0.014267]
[1771072690049,0.01468,70154.0,70136.0,0.014265]
[1771072690250,0.01468,70154.0,70137.0,0.01468]
[1771072690744,0.01468,70154.0,70137.0,0.028945]
[1771072690944,0.25461325,70155.0,70137.0,0.028945]
[1771072691145,0.01464,70153.0,70137.0,0.01468]
[1771072691654,0.01464,70152.0,70142.0,0.014264]
[1771072691859,0.25461325,70162.0,70142.0,0.014264]
[1771072691860,0.25461325,70162.0,70143.0,0.014264]
[1771072692154,0.25461325,70162.0,70142.0,0.028904]
[1771072692155,0.14276,70161.0,70144.0,0.014264]
[1771072692362,0.14276,70161.0,70147.0,0.014263]
[1771072692363,0.39737325,70161.0,70147.0,0.014263]
[1771072692548,0.14276,70161.0,70148.0,0.028903]
[1771072692954,0.14276,70161.0,70148.0,0.01464]
[1771072693260,0.01464,70162.0,70141.0,0.014264]
[1771072693560,0.01464,70162.0,70147.0,0.014263]
[1771072693861,0.01464,70162.0,70148.0,0.01464]
[1771072694257,0.14272,70165.0,70148.0,0.01464]
[1771072694460,0.01464,70169.0,70148.0,0.01464]
[1771072694658,0.25461325,70181.0,70148.0,0.01464]
[1771072694961,0.02940228,70209.0,70149.0,0.171623]
[1771072694962,0.25461325,70179.0,70149.0,0.171623]
[1771072695156,0.25461325,70177.0,70151.0,0.014262]
[1771072695352,0.25461325,70175.0,70152.0,0.014262]
[1771072695655,0.25461325,70174.0,70154.0,0.014262]
[1771072695960,0.25461325,70174.0,70155.0,0.01464]
[1771072696551,0.25461325,70174.0,70156.0,0.014261]
[1771072696755,0.25461325,70174.0,70155.0,0.028901]
[1771072696958,0.25461325,70174.0,70156.0,0.014261]
[1771072697158,0.25461325,70184.0,70164.0,0.014259]
[1771072697361,0.25461325,70182.0,70154.0,0.014262]
[1771072697563,0.25461325,70180.0,70155.0,0.15736]
[1771072697860,0.14253478,70190.0,70155.0,0.15736]
[1771072697861,0.25461325,70178.0,70155.0,0.171621]
[1771072698061,0.25461325,70176.0,70155.0,0.171621]
[1771072698361,0.25461325,70174.0,70155.0,0.171621]
[1771072698558,0.25461325,70174.0,70156.0,0.014261]
[1771072698759,0.01464,70175.0,70152.0,0.27714753]
[1771072698961,0.01464,70175.0,70161.0,0.01426]
[1771072699152,0.01464,70175.0,70161.0,0.0289]
[1771072699358,0.01464,70175.0,70161.0,0.01464]
[1771072699960,0.01464,70175.0,70162.0,0.01426]
[1771072700451,0.0038443,70175.0,70162.0,0.01426]
[1771072700658,0.01464,70176.0,70165.0,0.014259]
[1771072700957,0.01464,70176.0,70166.0,0.01464]
[1771072702062,0.26925325,70176.0,70160.0,0.01464]
[1771072704360,0.01464,70176.0,70160.0,0.01464]
[1771072704660,0.01464,70176.0,70160.0,0.0289]
[1771072704969,0.14268,70177.0,70164.0,0.01426]
[1771072705171,0.39729325,70177.0,70165.0,0.0146]
[1771072705469,0.14268,70177.0,70165.0,0.0146]
[1771072705666,0.25461325,70176.0,70151.0,0.014262]
[1771072705863,0.25461325,70174.0,70161.0,0.01426]
[1771072706064,0.25461325,70174.0,70162.0,0.02886]
[1771072706264,0.25461325,70174.0,70162.0,0.0146]
[1771072706466,0.25461325,70174.0,70160.0,0.01426]
[1771072707268,0.25461325,70174.0,70159.0,0.0146]
[1771072707665,0.25461325,70174.0,70158.0,0.0146]
[1771072708066,0.25461325,70174.0,70153.0,0.014262]
[1771072708265,0.25461325,70174.0,70155.0,0.014261]
[1771072708869,0.25461325,70174.0,70149.0,0.014263]
[1771072709073,0.25461325,70174.0,70151.0,0.014262]
[1771072709475,0.25461325,70174.0,70152.0,0.0146]
[1771072709867,0.25461325,70174.0,70152.0,0.028862]
[1771072710066,0.25461325,70174.0,70155.0,0.014261]
[1771072710473,0.25461325,70174.0,70152.0,0.028862]
[1771072710974,0.25461325,70174.0,70155.0,0.014261]
[1771072711272,0.25461325,70174.0,70157.0,0.014261]
[1771072711473,0.63721189,70227.0,70168.0,0.014259]
[1771072711474,0.2780072,70181.0,70168.0,0.014259]
[1771072711773,0.00153446,70178.0,70171.0,0.028516]
[1771072711968,0.0146,70179.0,70172.0,0.014258]
[1771072712275,0.0146,70179.0,70168.0,0.014259]
[1771072712471,0.0146,70179.0,70169.0,0.014259]
[1771072712662,0.14264,70184.0,70167.0,0.014259]
[1771072712868,0.0146,70183.0,70168.0,0.014259]
[1771072713674,0.0146,70183.0,70169.0,0.014259]
[1771072713875,0.0146,70183.0,70170.0,0.014258]
[1771072714276,0.0146,70183.0,70171.0,0.0146]
[1771072714776,0.0146,70183.0,70174.0,0.014257]
[1771072714977,0.0146,70183.0,70172.0,0.014258]
[1771072715172,0.0146,70183.0,70166.0,0.14264]
[1771072715366,0.2926072,70183.0,70166.0,0.15724]
[1771072716377,0.2926072,70183.0,70162.0,0.01426]
[1771072716575,0.2926072,70183.0,70163.0,0.01426]
[1771072716776,0.2926072,70183.0,70157.0,0.014261]
[1771072717079,0.2926072,70183.0,70163.0,0.01426]
[1771072717378,0.28181151,70183.0,70164.0,0.01426]
[1771072717582,0.28181151,70183.0,70165.0,0.014259]
[1771072717774,0.28181151,70183.0,70163.0,0.0146]
[1771072719676,0.28181151,70183.0,70159.0,0.014261]
[1771072719876,0.28181151,70183.0,70160.0,0.0146]
[1771072720067,0.28181151,70183.0,70160.0,0.02886]
[1771072720272,0.26148058,70181.0,70161.0,0.0146]
[1771072720473,0.26148058,70181.0,70162.0,0.01426]
[1771072720780,0.26148058,70181.0,70164.0,0.01426]
[1771072720983,0.26148058,70181.0,70163.0,0.01426]
[1771072721279,0.00380431,70183.0,70166.0,0.014259]
[1771072721780,0.00380431,70183.0,70164.0,0.01426]
[1771072722297,0.00380431,70183.0,70165.0,0.014259]
[1771072722580,0.00380431,70183.0,70168.0,0.014259]
[1771072722783,0.00380431,70183.0,70167.0,0.014259]
[1771072723384,0.00380431,70183.0,70169.0,0.014259]
[1771072723586,0.00380431,70183.0,70168.0,0.014259]
[1771072724383,0.00380431,70183.0,70167.0,0.014259]
[1771072724577,0.00380431,70183.0,70168.0,0.014259]
[1771072725275,0.00380431,70183.0,70167.0,0.014259]
[1771072725474,0.26528489,70183.0,70166.0,0.1572]
[1771072725678,0.26528489,70183.0,70170.0,0.014258]
[1771072725875,0.26528489,70183.0,70159.0,0.014261]
[1771072726081,0.26528489,70183.0,70164.0,0.01426]
[1771072726379,0.26528489,70183.0,70165.0,0.01456]
[1771072726882,0.26528489,70183.0,70163.0,0.01426]
[1771072727180,0.27356341,70182.0,70156.0,0.014261]
[1771072727376,0.26148058,70180.0,70157.0,0.1572]
[1771072727684,0.27604058,70179.0,70160.0,0.02852]
[1771072727981,0.27604058,70178.0,70161.0,0.01456]
[1771072728380,0.27604058,70178.0,70161.0,0.01426]
[1771072728681,0.27604058,70178.0,70160.0,0.01426]
[1771072728682,0.27604058,70178.0,70162.0,0.01456]
[1771072729286,0.01456,70178.0,70168.0,0.014259]
[1771072729480,0.26148058,70187.0,70167.0,0.014259]
[1771072729781,0.42166284,70202.0,70174.0,0.014257]
[1771072729782,0.1572,70186.0,70174.0,0.014257]
[1771072729976,0.12531437,70194.0,70179.0,0.014256]
[1771072729977,0.01456,70185.0,70179.0,0.014256]
[1771072730284,0.01456,70185.0,70176.0,0.014257]
[1771072730486,0.01456,70185.0,70177.0,0.014257]
[1771072730682,0.01456,70185.0,70176.0,0.014257]
[1771072730984,0.01456,70185.0,70177.0,0.014257]
[1771072731180,0.01456,70185.0,70176.0,0.014257]
[1771072731891,0.01456,70185.0,70175.0,0.014257]
[1771072732385,0.0037643,70185.0,70175.0,0.014257]
[1771072732982,0.0037643,70185.0,70174.0,0.014258]
[1771072733184,0.0037643,70185.0,70176.0,0.014257]
[1771072733690,0.0037643,70185.0,70174.0,0.014257]
[1771072733889,0.0037643,70185.0,70175.0,0.014257]
[1771072734086,0.0037643,70185.0,70176.0,0.014257]
[1771072734388,0.0037643,70185.0,70174.0,0.014258]
[1771072734580,0.0037643,70185.0,70175.0,0.014257]
[1771072735888,0.26524488,70185.0,70164.0,0.01426]
[1771072736082,0.26524488,70185.0,70170.0,0.01456]
[1771072736282,0.26524488,70185.0,70164.0,0.01426]
[1771072736590,0.26524488,70185.0,70165.0,0.01456]
[1771072737584,0.26524488,70185.0,70165.0,0.01452]
[1771072737989,0.26524488,70185.0,70164.0,0.014259]
[1771072738189,0.26524488,70185.0,70165.0,0.01452]
[1771072739489,0.26524488,70185.0,70163.0,0.02852]
[1771072739791,0.26524488,70185.0,70164.0,0.02878]
[1771072740591,0.26524488,70185.0,70165.0,0.014259]
[1771072740887,0.26524488,70185.0,70163.0,0.01452]
[1771072741286,0.28287389,70183.0,70163.0,0.01452]
[1771072742586,0.28287389,70183.0,70162.0,0.01426]
[1771072742788,0.28287389,70183.0,70163.0,0.01452]
[1771072742987,0.28287389,70183.0,70163.0,0.01426]
[1771072743291,0.28287389,70183.0,70163.0,0.01452]
[1771072743992,0.01452,70182.0,70163.0,0.01452]
[1771072744186,0.28287389,70181.0,70163.0,0.01452]
[1771072744382,0.27381395,70180.0,70151.0,0.1426]
[1771072744592,0.28287389,70178.0,70157.0,0.014261]
[1771072744792,0.28287389,70178.0,70155.0,0.014261]
[1771072744988,0.28287389,70176.0,70143.0,0.014264]
[1771072745194,0.28287389,70174.0,70144.0,0.01452]
[1771072745494,0.28287389,70172.0,70144.0,0.01452]
[1771072745694,0.28287389,70170.0,70144.0,0.01452]
[1771072745895,0.28287389,70168.0,70144.0,0.01452]
[1771072746092,0.28287389,70166.0,70144.0,0.01452]
[1771072746287,0.28287389,70164.0,70144.0,0.01452]
[1771072746488,0.28287389,70162.0,70144.0,0.01452]
[1771072746690,0.28287389,70160.0,70144.0,0.01452]
[1771072747492,0.28287389,70160.0,70142.0,0.014264]
[1771072747791,0.28287389,70160.0,70143.0,0.014264]
[1771072748595,0.28287389,70160.0,70144.0,0.014264]
[1771072749189,0.28287389,70160.0,70134.0,0.014266]
[1771072749190,0.28287389,70160.0,70138.0,0.014265]
[1771072749397,0.28287389,70160.0,70137.0,0.028785]
[1771072749597,0.28287389,70160.0,70139.0,0.014265]
[1771072749795,0.28287389,70160.0,70141.0,0.014264]
[1771072749998,0.28287389,70160.0,70142.0,0.014264]
[1771072752597,0.28287389,70160.0,70140.0,0.29605436]
[1771072752598,0.28287389,70160.0,70140.0,0.014264]
[1771072752800,0.28287389,70160.0,70100.0,0.014272]
[1771072752801,0.20543514,70149.0,70100.0,0.014272]
[1771072753000,0.1424,70151.0,70098.0,0.29606336]
[1771072753001,0.20554863,70139.0,70098.0,0.014273]
[1771072753300,0.20554863,70137.0,70099.0,0.014273]
[1771072753503,0.20554863,70137.0,70098.0,0.29606336]
[1771072753701,0.01427,70112.0,70098.0,0.29606336]
[1771072754005,0.01456,70111.0,70098.0,0.28179036]
[1771072754204,0.014271,70110.0,70099.0,0.01456]
[1771072754503,0.014271,70106.0,70099.0,0.01456]
[1771072754999,0.014271,70109.0,70098.0,0.28179036]
[1771072755202,0.014272,70106.0,70100.0,0.01456]
[1771072755811,0.014272,70105.0,70100.0,0.01456]
[1771072756010,0.014271,70108.0,70094.0,0.28179036]
[1771072756213,0.01456,70111.0,70093.0,0.14268]
[1771072756214,0.014272,70106.0,70093.0,0.14268]
[1771072756511,0.014272,70106.0,70090.0,0.29635036]
[1771072756717,0.014272,70104.0,70094.0,0.014274]
[1771072756915,0.01456,70107.0,70055.0,0.28179036]
[1771072756916,0.20552378,70102.0,70055.0,0.28179036]
[1771072757106,0.20552378,70102.0,70050.0,0.0002]
[1771072757107,0.014276,70086.0,70061.0,0.014281]
[1771072757312,0.014276,70082.0,70065.0,0.01428]
[1771072757512,0.0146,70081.0,70064.0,0.28179036]
[1771072757714,0.014277,70078.0,70064.0,0.28179036]
[1771072757906,0.0146,70080.0,70064.0,0.29639036]
[1771072757907,0.014278,70073.0,70064.0,0.29639036]
[1771072758118,0.01428,70065.0,70060.0,0.0146]
[1771072758317,0.014279,70069.0,70059.0,0.0146]
[1771072758511,0.01428,70067.0,70059.0,0.0146]
[1771072758706,0.01428,70066.0,70059.0,0.0146]
[1771072758911,0.0146,70070.0,70059.0,0.0146]
[1771072759116,0.01428,70063.0,70057.0,0.0146]
[1771072759312,0.0001434,70062.0,70057.0,0.0146]
[1771072759513,0.0144244,70062.0,70057.0,0.0146]
[1771072759709,0.0001434,70062.0,70057.0,0.0146]
[1771072760118,0.0144234,70062.0,70057.0,0.0146]
[1771072760320,0.0144234,70062.0,70051.0,0.29607336]
[1771072760520,0.0001434,70062.0,70055.0,0.28179036]
[1771072760720,0.01428,70065.0,70056.0,0.0146]
[1771072761220,0.01428,70066.0,70056.0,0.0146]
[1771072761415,0.01428,70066.0,70053.0,0.014282]
[1771072761416,0.0146,70066.0,70054.0,0.28179036]
[1771072761619,0.01428,70064.0,70054.0,0.28179036]
[1771072761822,0.014281,70061.0,70054.0,0.28179036]
[1771072762018,0.01428,70065.0,70050.0,0.0002]
[1771072762218,0.014282,70056.0,70046.0,0.014284]
[1771072762419,0.014281,70057.0,70045.0,0.28179036]
[1771072762723,0.014281,70057.0,70040.0,0.014285]
[1771072762724,0.157002,70056.0,70051.0,0.00159637]
[1771072762916,0.028882,70055.0,70045.0,0.014284]
[1771072763116,0.0146,70055.0,70045.0,0.014284]
[1771072763320,0.0131119,70048.0,70042.0,0.0146]
[1771072763622,0.2763789,70066.0,70043.0,0.27910296]
[1771072763820,0.014282,70054.0,70040.0,0.29338796]
[1771072764025,0.01464,70053.0,70043.0,0.014284]
[1771072764224,0.14276,70056.0,70043.0,0.29374296]
[1771072764419,0.01464,70057.0,70050.0,0.014283]
[1771072764722,0.014281,70061.0,70048.0,0.014283]
[1771072764723,0.01464,70061.0,70052.0,0.014282]
[1771072765021,0.01464,70061.0,70053.0,0.014282]
[1771072765221,0.14276,70066.0,70050.0,0.27910296]
[1771072765411,0.014278,70077.0,70050.0,0.27910296]
[1771072765412,0.014278,70072.0,70058.0,0.014281]
[1771072765618,0.01464,70073.0,70061.0,0.014281]
[1771072765922,0.01464,70073.0,70064.0,0.01428]
[1771072766324,0.01464,70073.0,70061.0,0.01428]
[1771072766518,0.01464,70074.0,70065.0,0.01428]
[1771072766824,0.014278,70073.0,70062.0,0.01428]
[1771072767016,0.01464,70074.0,70064.0,0.01428]
[1771072767224,0.01464,70074.0,70065.0,0.01428]
[1771072767426,0.01464,70074.0,70066.0,0.01428]
[1771072767619,0.01464,70074.0,70067.0,0.014279]
[1771072767924,0.01464,70074.0,70066.0,0.01428]
[1771072768125,0.01464,70074.0,70067.0,0.014279]
[1771072768320,0.01464,70075.0,70068.0,0.014279]
[1771072768518,0.01464,70075.0,70066.0,0.01428]
[1771072769021,0.01464,70075.0,70065.0,0.01428]
[1771072769525,0.028918,70075.0,70066.0,0.01428]
[1771072770024,0.014278,70074.0,70064.0,0.01428]
[1771072770224,0.014278,70074.0,70065.0,0.01428]
[1771072770417,0.028918,70075.0,70065.0,0.01428]
[1771072770726,0.014278,70074.0,70065.0,0.01428]
[1771072770925,0.014279,70072.0,70063.0,0.01464]